bitfinex/quotes_ETHUSD_20251018
["timestamp","ask_amount","ask_price","bid_price","bid_amount"]
[1760828493857,5.20682966,3892.5,3892.4,0.002]
[1760828498126,5.20682966,3892.5,3892.4,0.4743]
[1760828502462,10.02315025,3892.5,3892.4,0.4743]
[1760828506865,10.02315025,3892.5,3892.4,0.002]
[1760828530290,0.6336,3892.3,3891.1,0.454]
[1760828530465,7.3062578,3891.2,3891.1,0.454]
[1760828531090,10.33015911,3891.2,3891.1,0.454]
[1760828531293,0.6336,3890.9,3890.2,0.10308468]
[1760828531467,0.7616,3890.9,3889.5,2.57101938]
[1760828531785,0.7616,3890.9,3889.7,2.57083634]
[1760828531987,1.53480683,3890.9,3890.8,0.6696]
[1760828532298,1.40680683,3890.9,3890.8,0.6696]
[1760828534601,1.45161205,3890.9,3890.8,0.6696]
[1760828534902,1.45161205,3890.9,3890.8,0.6716]
[1760828538916,0.04480522,3890.9,3890.8,0.6716]
[1760828539314,0.04480522,3890.9,3890.8,1.3432]
[1760828539609,0.6336,3891.8,3890.8,1.3432]
[1760828539610,0.6336,3891.8,3890.8,4.30471484]
[1760828539811,0.6336,3892.1,3891.7,0.2305]
[1760828540037,4.9446578,3892.2,3891.7,0.2305]
[1760828540216,1.728,3892.1,3891.8,0.454]
[1760828540384,0.6336,3892.0,3891.8,0.454]
[1760828540709,1.728,3892.1,3891.8,0.454]
[1760828540877,1.728,3892.1,3891.7,0.2305]
[1760828540878,4.9456578,3892.6,3891.9,0.454]
[1760828541297,2.3616,3892.5,3891.9,0.454]
[1760828541822,0.77392395,3892.6,3892.4,0.2305]
[1760828541984,0.001,3892.6,3892.5,0.454]
[1760828542610,0.04578019,3892.6,3892.5,0.454]
[1760828542927,0.04578019,3892.6,3892.5,3.6181998]
[1760828543137,0.04578019,3892.6,3892.5,3.72121306]
[1760828545413,0.04578019,3892.6,3892.5,0.55701326]
[1760828548711,0.17378019,3892.6,3892.5,0.55701326]
[1760828549921,0.17378019,3892.6,3892.5,3.12605629]
[1760828551516,0.17378019,3892.6,3892.5,3.02304303]
[1760828555946,0.17378019,3892.6,3892.5,0.454]
[1760828556246,0.17378019,3892.6,3892.5,4.75104303]
[1760828556450,0.17378019,3892.6,3892.5,5.50611998]
[1760828560549,0.04578019,3892.6,3892.5,5.50611998]
[1760828561119,0.04578019,3892.6,3892.5,5.05211998]
[1760828561339,0.04578019,3892.6,3892.5,5.52551998]
[1760828561731,0.04578019,3892.6,3892.5,3.32411998]
[1760828561946,0.04578019,3892.6,3892.5,3.79751998]
[1760828562332,0.04578019,3892.6,3892.5,3.32411998]
[1760828562640,0.04578019,3892.6,3892.5,3.04244303]
[1760828575868,0.04578019,3892.6,3892.5,3.06813346]
[1760828583970,0.04578019,3892.6,3892.5,3.04244303]
[1760828589367,0.04578019,3892.6,3892.5,3.17044303]
[1760828589766,0.001,3892.6,3892.5,3.17044303]
[1760828589966,0.001,3892.6,3892.5,4.64996835]
[1760828592993,0.001,3892.6,3892.5,4.67565878]
[1760828593170,0.001,3892.6,3892.5,4.64996835]
[1760828598393,0.001,3892.6,3892.5,8.50475789]
[1760828599703,0.001,3892.6,3892.5,10.23275789]
[1760828600681,0.001,3892.6,3892.5,10.33574224]
[1760828601901,0.001,3892.6,3892.5,9.86234224]
[1760828602107,0.001,3892.6,3892.5,9.75935789]
[1760828602400,0.001,3892.6,3892.5,10.19525789]
[1760828602988,0.001,3892.6,3892.5,12.90425789]
[1760828603207,0.001,3892.6,3892.5,10.19525789]
[1760828604790,0.001,3892.6,3892.5,9.75935789]
[1760828605505,0.001,3892.6,3892.5,10.19525789]
[1760828610215,0.001,3892.6,3892.5,9.75935789]
[1760828612117,0.001,3892.6,3892.5,10.01895789]
[1760828613199,0.001,3892.6,3892.5,8.29095789]
[1760828615213,0.001,3892.6,3892.5,8.75125789]
[1760828622826,0.001,3892.6,3892.5,11.11285789]
[1760828627710,0.001,3892.6,3892.5,18.98187689]
[1760828627920,0.001,3893.0,3892.9,3.20237905]
[1760828628238,0.001,3893.0,3892.9,15.76037703]
[1760828628443,0.001,3893.0,3892.9,16.19498924]
[1760828628743,0.001,3893.0,3892.9,16.2979606]
[1760828632148,0.001,3893.9,3893.4,9.87470697]
[1760828632346,0.001,3893.9,3893.4,17.80967968]
[1760828632511,0.001,3893.9,3893.4,18.39797968]
[1760828632711,0.001,3893.9,3893.4,18.50093461]
[1760828633236,0.001,3893.9,3893.4,21.20993461]
[1760828634363,0.001,3893.9,3893.4,23.39683461]
[1760828639347,0.001,3893.9,3893.4,20.81683461]
[1760828639560,0.001,3893.9,3893.4,23.39683461]
[1760828641963,0.001,3893.9,3893.4,41.44289461]
[1760828642874,0.001,3893.9,3893.4,43.45837209]
[1760828643942,0.001,3893.9,3893.4,25.40113319]
[1760828647076,0.001,3893.9,3893.8,24.52343887]
[1760828647281,0.001,3893.9,3893.8,29.7359184]
[1760828647447,0.001,3893.9,3893.8,30.3118184]
[1760828647648,0.001,3893.9,3893.8,30.41475584]
[1760828647860,0.001,3893.9,3893.8,22.66595867]
[1760828648858,1e-08,3894.4,3894.3,5.91045558]
[1760828649060,0.1407,3897.0,3894.4,1.728]
[1760828649280,0.2596,3896.1,3895.5,12.58232236]
[1760828649488,0.2596,3896.1,3895.5,15.16432236]
[1760828649489,0.099,3895.9,3895.5,15.16432236]
[1760828649790,0.099,3895.9,3895.5,15.29602199]
[1760828649991,0.099,3895.9,3895.5,17.09832957]
[1760828650365,0.2596,3896.1,3895.5,17.22584662]
[1760828650569,0.2596,3896.1,3895.5,17.09832957]
[1760828651295,0.1606,3896.1,3895.5,17.09832957]
[1760828651513,0.1606,3896.1,3895.5,17.54622957]
[1760828652215,0.1407,3897.0,3895.5,31.32029457]
[1760828652398,0.1407,3897.0,3895.5,25.27066857]
[1760828652562,0.258,3896.3,3895.5,22.81146057]
[1760828652765,0.1407,3897.0,3895.5,20.10246057]
[1760828653068,0.099,3896.2,3895.5,22.87576057]
[1760828653798,0.1407,3897.0,3896.9,2.56614231]
[1760828654497,0.1407,3897.0,3896.9,2.76954231]
[1760828659199,0.1407,3897.0,3896.9,2.89754231]
[1760828671894,0.1407,3897.0,3896.9,2.69414231]
[1760828674724,0.1417,3897.0,3896.9,2.69414231]
[1760828674942,0.1417,3897.0,3896.5,3.85378954]
[1760828675139,0.1417,3897.0,3896.9,2.56614231]
[1760828677351,0.1427,3897.0,3896.9,2.56614231]
[1760828680140,0.1427,3897.0,3896.6,2.69432069]
[1760828680454,0.001,3896.9,3896.8,2.56614842]
[1760828682252,0.1417,3897.0,3896.9,2.56614231]
[1760828682955,0.1427,3897.0,3896.8,2.56614688]
[1760828683155,0.2697,3897.0,3896.8,2.56614688]
[1760828683450,0.001,3896.9,3896.8,2.56614688]
[1760828684036,0.2697,3897.0,3896.8,2.56614688]
[1760828684240,0.2707,3897.0,3896.8,2.56614688]
[1760828684556,0.001,3896.9,3896.8,2.56614688]
[1760828686359,0.2697,3897.0,3896.9,2.56614231]
[1760828686861,0.2697,3897.0,3896.8,2.56619253]
[1760828687058,0.2707,3897.0,3896.8,2.56619253]
[1760828687550,0.2707,3897.0,3896.9,2.56614231]
[1760828689059,0.2697,3897.0,3896.9,2.56614231]
[1760828690564,0.2697,3897.0,3896.6,2.5663075]
[1760828690861,0.001,3896.9,3896.5,2.56639512]
[1760828691055,0.2697,3897.0,3896.8,2.56620031]
[1760828691255,0.2707,3897.0,3896.8,2.56620031]
[1760828691764,0.2697,3897.0,3896.9,2.56614231]
[1760828693561,0.129,3897.0,3896.9,2.56614231]
[1760828693763,0.001,3897.0,3896.9,3.56536197]
[1760828697582,0.001,3897.0,3896.9,3.59102339]
[1760828701570,0.001,3897.0,3896.9,3.56536197]
[1760828704050,0.001,3897.0,3896.9,3.12356197]
[1760828704256,0.001,3897.0,3896.9,2.56614231]
[1760828712965,0.001,3897.0,3896.9,3.00524231]
[1760828715389,0.001,3897.0,3896.8,3.85378954]
[1760828715558,0.1403,3896.9,3896.8,3.85378954]
[1760828716194,0.001,3897.0,3896.8,3.85378954]
[1760828719398,0.001,3897.0,3896.8,6.41998597]
[1760828719596,0.001,3897.0,3896.8,1.728]
[1760828719805,0.001,3897.0,3896.7,1.728]
[1760828719978,0.1413,3897.0,3896.6,1.728]
[1760828720798,0.1413,3897.0,3896.5,1.728]
[1760828721098,0.001,3897.0,3896.6,2.56633988]
[1760828722001,0.001,3897.0,3896.8,1.728]
[1760828722189,0.001,3897.0,3896.5,3.00548493]
[1760828722898,0.001,3897.0,3896.6,2.56629369]
[1760828723303,0.001,3897.0,3896.7,2.56626615]
[1760828723668,0.001,3897.0,3896.6,2.56632526]
[1760828724216,0.001,3897.0,3896.7,2.56627302]
[1760828725022,0.001,3897.0,3896.6,2.56631798]
[1760828725223,0.001,3897.0,3896.7,2.56625177]
[1760828725518,0.129,3897.0,3896.8,2.56620218]
[1760828726299,0.129,3897.0,3896.9,2.56614231]
[1760828727217,0.129,3897.0,3896.9,3.00524231]
[1760828731426,0.129,3897.0,3896.9,2.56614231]
[1760828734295,0.129,3897.0,3896.8,2.69520468]
[1760828738341,0.129,3897.0,3896.9,2.56614231]
[1760828745059,0.129,3897.0,3896.8,0.129]
[1760828745265,0.129,3897.0,3896.2,6.4203742]
[1760828745565,0.128,3896.6,3896.5,0.129]
[1760828746142,0.17272811,3896.6,3896.5,0.129]
[1760828746344,0.128,3896.6,3896.5,0.129]
[1760828750092,0.128,3896.6,3896.1,0.002]
[1760828750238,0.1403,3896.8,3896.1,0.4549]
[1760828750443,0.128,3896.4,3896.2,0.1413]
[1760828751275,0.128,3896.4,3896.2,0.5942]
[1760828752181,0.128,3896.4,3896.3,3.01943748]
[1760828754082,0.128,3896.4,3896.3,2.97470948]
[1760828755788,0.128,3896.4,3896.3,0.408172]
[1760828758054,0.128,3896.4,3896.2,0.1413]
[1760828758260,0.128,3896.4,3896.1,0.002]
[1760828758460,0.128,3896.4,3896.1,0.13]
[1760828760684,0.128,3896.4,3896.1,0.5829]
[1760828766805,0.128,3896.4,3896.1,0.13]
[1760828768402,0.128,3896.4,3896.1,0.002]
[1760828768606,0.227,3896.4,3896.1,0.002]
[1760828769405,0.128,3896.4,3896.1,0.002]
[1760828770077,0.0457311,3896.5,3896.1,0.002]
[1760828770273,0.099,3896.3,3896.1,0.002]
[1760828770804,0.001,3896.5,3896.1,0.002]
[1760828770979,0.20294168,3896.5,3896.1,0.002]
[1760828771174,0.099,3896.4,3896.1,0.002]
[1760828771884,0.099,3896.3,3896.1,0.002]
[1760828773416,0.14373741,3896.3,3896.1,0.002]
[1760828776012,0.04473741,3896.3,3896.1,0.002]
[1760828777626,7.4052578,3896.2,3896.1,0.002]
[1760828777927,9.97186115,3896.2,3896.1,0.002]
[1760828778220,10.01660572,3896.2,3896.1,0.002]
[1760828778424,10.074819,3896.2,3896.1,0.002]
[1760828781108,10.11956723,3896.2,3896.1,0.002]
[1760828782413,2.56686688,3895.8,3894.9,0.4026]
[1760828782594,1.728,3895.6,3894.9,0.4026]
[1760828783040,0.04474937,3895.5,3894.9,0.4026]
[1760828784226,0.04474937,3895.5,3894.2,2.80330116]
[1760828784442,0.14474937,3895.5,3894.3,0.4426]
[1760828784803,4.9446578,3895.3,3894.3,0.4426]
[1760828785408,0.04475082,3895.1,3894.3,0.4426]
[1760828786915,0.04475082,3895.1,3894.2,0.2354]
[1760828787122,0.04475082,3895.1,3894.4,0.4426]
[1760828788816,1.728,3895.0,3894.4,0.4426]
[1760828789215,0.04475082,3895.1,3894.4,0.4426]
[1760828790645,1.728,3895.0,3894.4,0.4426]
[1760828792045,0.04475082,3895.1,3894.4,0.4426]
[1760828792450,1.728,3895.0,3894.4,0.4426]
[1760828792946,0.04475082,3895.1,3894.4,0.4426]
[1760828794548,0.04475082,3895.1,3894.4,0.4446]
[1760828801468,0.04475082,3895.1,3894.5,0.02567723]
[1760828801635,0.128,3894.8,3894.6,3.03965778]
[1760828801839,0.128,3894.8,3894.7,3.03959185]
[1760828803859,0.128,3894.8,3894.7,0.472]
[1760828809142,0.128,3894.8,3894.4,0.002]
[1760828809458,0.103,3894.8,3894.4,0.002]
[1760828809849,0.103,3894.7,3894.4,0.002]
[1760828812853,0.14775371,3894.7,3894.4,0.002]
[1760828813863,0.04475371,3894.7,3894.4,0.002]
[1760828816753,5.0476578,3894.6,3894.4,0.002]
[1760828817228,7.61533273,3894.6,3894.4,0.002]
[1760828818440,5.0476578,3894.6,3894.4,0.002]
[1760828818867,0.103,3894.5,3894.4,0.002]
[1760828821370,0.14776047,3894.5,3894.4,0.002]
[1760828823370,1.87576047,3894.5,3894.4,0.002]
[1760828826171,0.0387603,3893.6,3893.4,0.473]
[1760828826551,0.0387603,3893.6,3893.4,0.002]
[1760828826767,0.0387603,3893.6,3893.5,0.4465]
[1760828827339,0.0387603,3893.6,3893.4,0.002]
[1760828827765,0.0387603,3893.6,3893.4,0.4485]
[1760828830473,2.4655,3893.5,3893.4,0.002]
[1760828830673,5.0338832,3893.5,3893.4,0.002]
[1760828832869,5.163188,3893.5,3893.4,0.002]
[1760828837079,5.26622567,3893.5,3893.4,0.002]
[1760828838166,5.13692087,3893.5,3893.4,0.002]
[1760828838477,5.03302087,3893.5,3893.4,0.002]
[1760828839366,5.16023115,3893.5,3893.4,0.002]
[1760828840177,5.03302087,3893.5,3893.4,0.002]
[1760828842290,0.40293424,3893.7,3893.4,0.6726]
[1760828842475,4.9446578,3894.7,3893.5,0.4465]
[1760828842789,0.40287859,3894.0,3893.5,0.4465]
[1760828843087,2.3616,3894.6,3893.5,0.4465]
[1760828843250,2.3616,3894.6,3894.4,0.2241]
[1760828843653,0.001,3894.9,3894.4,0.2241]
[1760828843654,0.001,3894.9,3894.4,0.6706]
[1760828845064,0.6346,3894.9,3894.4,0.6706]
[1760828847368,0.001,3894.9,3894.4,0.6706]
[1760828847773,0.129,3894.5,3894.4,3.23838964]
[1760828848384,0.129,3894.5,3894.4,3.69675588]
[1760828853408,0.001,3894.5,3894.4,3.72243377]
[1760828853605,0.001,3894.5,3894.4,3.85043377]
[1760828854477,0.001,3894.5,3894.4,3.82475588]
[1760828858614,0.001,3894.5,3894.4,3.78599558]
[1760828874839,0.001,3894.5,3894.4,3.15415588]
[1760828882259,0.001,3894.5,3894.4,0.128]
[1760828882543,0.001,3894.5,3893.4,0.6845]
[1760828882544,0.101,3894.5,3893.6,0.002]
[1760828882745,0.1493,3894.4,3893.9,2.56811936]
[1760828882932,0.0995,3894.3,3893.9,2.56811936]
[1760828883132,0.0995,3894.2,3894.0,2.56803596]
[1760828883451,0.0995,3894.2,3894.0,2.57003596]
[1760828883748,0.1493,3894.4,3894.0,2.57003596]
[1760828884052,0.0995,3894.3,3894.0,2.57003596]
[1760828885244,0.0995,3894.3,3894.1,2.56797425]
[1760828885544,0.0498,3894.4,3894.2,2.56792152]
[1760828886356,0.0498,3894.4,3894.1,2.5679796]
[1760828887656,0.0498,3894.4,3894.0,2.57005242]
[1760828887826,0.1493,3894.4,3894.0,2.57005242]
[1760828888148,0.0995,3894.3,3894.0,0.002]
[1760828888553,0.0498,3894.4,3894.0,0.002]
[1760828888731,0.0995,3894.2,3894.0,0.002]
[1760828889140,0.0995,3894.2,3894.0,2.57003335]
[1760828889559,0.1493,3894.4,3894.0,2.57003335]
[1760828889776,0.0498,3894.4,3894.0,2.57003335]
[1760828889978,0.0995,3894.3,3894.0,2.57003335]
[1760828891063,0.001,3894.5,3894.4,2.56778964]
[1760828891375,0.001,3894.5,3894.2,0.2161]
[1760828891674,0.001,3894.5,3894.3,0.4731]
[1760828892178,0.001,3894.5,3894.4,2.56778964]
[1760828892544,0.001,3894.5,3894.4,3.04088964]
[1760828893975,0.001,3894.5,3894.4,0.4731]
[1760828894180,0.001,3894.5,3894.2,0.128]
[1760828894681,0.001,3894.5,3894.4,2.56778964]
[1760828895844,0.001,3894.5,3894.4,3.04088964]
[1760828896973,0.001,3894.5,3894.4,2.56778964]
[1760828902582,0.04575954,3894.5,3894.4,2.56778964]
[1760828903964,0.04575954,3894.5,3894.4,3.04088964]
[1760828905691,0.04575954,3894.5,3894.4,3.63618001]
[1760828907260,0.04575954,3894.5,3894.4,3.04088964]
[1760828913563,0.04575954,3894.5,3894.4,3.16888964]
[1760828916103,0.04575954,3894.5,3894.4,2.69578964]
[1760828916275,0.001,3894.5,3894.4,3.17916753]
[1760828916607,0.001,3894.5,3894.4,3.30716753]
[1760828916778,0.001,3894.5,3894.4,3.91628569]
[1760828920483,0.001,3894.5,3894.4,3.8906078]
[1760828933937,0.001,3894.5,3894.4,3.8926078]
[1760828934436,0.001,3894.5,3894.4,3.4349078]
[1760828936549,0.001,3894.5,3894.4,3.8926078]
[1760828938339,0.001,3894.5,3894.4,5.64628569]
[1760828938540,0.001,3894.5,3894.4,5.6206078]
[1760828940536,0.001,3894.5,3894.4,3.8926078]
[1760828941338,0.001,3894.5,3894.4,9.50007523]
[1760828941542,0.001,3894.5,3894.4,9.47439734]
[1760828948821,0.001,3894.5,3894.4,12.81499734]
[1760828949833,1e-08,3895.1,3895.0,4.29539409]
[1760828950141,1e-08,3895.1,3895.0,12.53101783]
[1760828950357,1e-08,3895.1,3895.0,12.96164389]
[1760828950557,1e-08,3895.1,3895.0,13.06456438]
[1760828956963,1e-08,3895.1,3895.0,16.91835392]
[1760828957143,1e-08,3895.1,3895.0,33.26090992]
[1760828958336,1e-08,3895.1,3895.0,31.78514492]
[1760828958533,1e-08,3895.1,3895.0,29.88071992]
[1760828959978,1e-08,3895.1,3895.0,30.00871992]
[1760828960152,1e-08,3895.1,3895.0,29.57749592]
[1760828960782,1e-08,3895.1,3895.0,28.62216892]
[1760828961168,1e-08,3895.1,3895.0,25.52977492]
[1760828962572,1e-08,3895.1,3895.0,22.68690092]
[1760828965081,1e-08,3895.1,3895.0,20.38695392]
[1760828965773,1e-08,3895.1,3895.0,22.60208892]
[1760828965990,1e-08,3895.1,3895.0,22.48784492]
[1760828966980,1e-08,3895.1,3895.0,20.38695392]
[1760828968096,1e-08,3895.1,3895.0,20.38895392]
[1760828970821,1e-08,3895.1,3895.0,19.93265392]
[1760828973518,1e-08,3895.1,3895.0,19.29905392]
[1760828975522,1e-08,3895.1,3895.0,9.06839612]
[1760828975523,0.09990001,3895.1,3895.0,9.06839612]
[1760828975727,0.09990001,3895.1,3895.0,11.64639612]
[1760828976512,0.09990001,3895.1,3895.0,10.96010412]
[1760828977026,0.09990001,3895.1,3895.0,7.10631458]
[1760828982835,1e-08,3895.1,3895.0,10.96010412]
[1760828983233,1e-08,3895.1,3895.0,8.38210412]
[1760828983416,0.09990001,3895.1,3895.0,6.52610412]
[1760828983822,1e-08,3895.1,3895.0,6.52610412]
[1760828984017,1e-08,3895.1,3895.0,3.83947758]
[1760828986628,1e-08,3895.1,3895.0,3.86515152]
[1760828987829,1e-08,3895.1,3895.0,9.42126712]
[1760828988034,1e-08,3895.1,3895.0,12.45706712]
[1760828989343,1e-08,3895.1,3895.0,22.51828458]
[1760828989847,1e-08,3895.1,3895.0,22.05559058]
[1760828990348,1e-08,3895.1,3895.0,19.64971958]
[1760828990548,1e-08,3895.1,3895.0,19.06402058]
[1760828990870,1e-08,3895.1,3895.0,17.94895958]
[1760828991046,1e-08,3895.1,3895.0,11.94387758]
[1760828993551,1e-08,3895.1,3895.0,11.61407758]
[1760828994118,1e-08,3895.1,3895.0,12.07187758]
[1760828994547,1e-08,3895.1,3895.0,9.54926712]
[1760828994752,1e-08,3895.1,3895.0,12.12726712]
[1760828996572,1e-08,3895.1,3895.0,9.54926712]
[1760828996731,1e-08,3895.1,3895.0,12.12726712]
[1760828997066,1e-08,3895.1,3895.0,17.07192492]
[1760828997636,1e-08,3895.1,3895.0,13.21813538]
[1760828999665,1e-08,3895.1,3895.0,17.07192492]
[1760829001588,1e-08,3895.1,3895.0,9.54926712]
[1760829001768,0.10180001,3895.1,3895.0,6.65410412]
[1760829003694,0.10180001,3895.1,3895.0,2.80031458]
[1760829006283,0.10180001,3895.1,3895.0,2.67231458]
[1760829009609,0.10180001,3895.1,3894.6,0.002]
[1760829009610,5.04645781,3895.1,3894.6,0.002]
[1760829009842,7.70974965,3894.7,3894.6,0.002]
[1760829010129,11.00873109,3894.7,3894.6,0.002]
[1760829010306,11.00873109,3894.7,3894.0,0.002]
[1760829010307,0.6336,3894.5,3894.0,0.002]
[1760829010510,7.3062578,3894.1,3894.0,0.002]
[1760829010707,9.87424526,3894.1,3894.0,0.002]
[1760829010907,10.39624932,3894.1,3894.0,0.002]
[1760829011849,3.20185127,3893.7,3893.2,0.002]
[1760829012051,9.87450907,3893.7,3893.2,0.002]
[1760829012232,9.97350907,3893.7,3893.2,0.002]
[1760829012632,10.41585881,3893.7,3893.2,0.002]
[1760829013147,4.93011514,3893.3,3893.2,0.002]
[1760829013299,0.6336,3893.3,3893.2,0.002]
[1760829013501,0.099,3893.3,3893.2,0.002]
[1760829014018,0.20201936,3893.3,3893.2,0.002]
[1760829014544,0.24679244,3893.3,3893.2,0.002]
[1760829017225,0.88039244,3893.3,3893.2,0.002]
[1760829022563,0.14779244,3893.3,3893.2,0.002]
[1760829022735,0.04477308,3893.3,3893.2,0.002]
[1760829024658,0.04477308,3893.3,3893.2,2.57058111]
[1760829024857,0.17277308,3893.3,3893.2,3.03308111]
[1760829025354,0.128,3893.3,3893.2,3.03308111]
[1760829025972,0.128,3893.3,3893.2,0.002]
[1760829027853,0.227,3893.3,3893.2,0.002]
[1760829028058,0.7616,3893.3,3893.2,0.002]
[1760829028240,0.7326,3893.3,3893.2,0.002]
[1760829030950,0.77737635,3893.3,3893.2,0.002]
[1760829031457,5.07389149,3893.3,3893.2,0.002]
[1760829031770,2.50537635,3893.3,3893.2,0.002]
[1760829032554,5.07389149,3893.3,3893.2,0.002]
[1760829035872,2.50537635,3893.3,3893.2,0.002]
[1760829036671,5.07389149,3893.3,3893.2,0.002]
[1760829039990,2.40637635,3893.3,3893.2,0.002]
[1760829043164,2.3616,3893.3,3893.2,0.4598]
[1760829044094,2.3616,3893.3,3893.2,0.002]
[1760829045388,2.3616,3893.3,3893.2,0.4598]
[1760829045765,1.728,3893.3,3893.2,0.4598]
[1760829046176,2.40637371,3893.3,3893.2,0.002]
[1760829047862,2.3616,3893.3,3893.2,0.002]
[1760829051782,2.40637473,3893.3,3893.2,0.002]
[1760829051982,2.40637473,3893.3,3893.2,0.4598]
[1760829052377,2.40637473,3893.3,3893.2,0.002]
[1760829059113,2.50537473,3893.3,3893.2,0.002]
[1760829059411,2.40637473,3893.3,3893.2,0.002]
[1760829060110,2.50537473,3893.3,3893.2,0.002]
[1760829060309,5.07388987,3893.3,3893.2,0.002]
[1760829061009,5.02911514,3893.3,3893.2,0.002]
[1760829062483,4.93011514,3893.3,3893.2,0.002]
[1760829062696,5.02911514,3893.3,3893.2,0.002]
[1760829063289,4.93011514,3893.3,3893.2,0.002]
[1760829063486,2.40637961,3893.3,3893.2,0.002]
[1760829070228,4.97489475,3893.3,3893.2,0.002]
[1760829073013,5.07389475,3893.3,3893.2,0.002]
[1760829074103,4.97489475,3893.3,3893.2,0.002]
[1760829074305,5.07389475,3893.3,3893.2,0.002]
[1760829077404,4.97489475,3893.3,3893.2,0.002]
[1760829080319,2.40637961,3893.3,3893.2,0.002]
[1760829080509,4.97489475,3893.3,3893.2,0.002]
[1760829087413,5.07389475,3893.3,3893.2,0.002]
[1760829088241,5.02911514,3893.3,3893.2,0.002]
[1760829090032,4.93011514,3893.3,3893.2,0.002]
[1760829091349,4.97489901,3893.3,3893.2,0.002]
[1760829092450,4.97489901,3893.3,3893.2,0.4612]
[1760829093651,5.43609901,3893.3,3893.2,0.4612]
[1760829095147,4.97489901,3893.3,3893.2,0.4612]
[1760829098322,4.97489901,3893.3,3893.2,0.002]
[1760829099053,5.07793615,3893.3,3893.2,0.002]
[1760829101739,5.07793615,3893.3,3893.2,0.4523]
[1760829101939,5.07793615,3893.3,3893.2,0.002]
[1760829107269,5.07793615,3893.3,3893.2,0.4523]
[1760829110250,5.07793615,3893.3,3893.2,0.002]
[1760829116153,5.07793615,3893.3,3893.2,0.4523]
[1760829116452,5.07793615,3893.3,3893.2,0.002]
[1760829120161,5.48089314,3893.3,3893.2,0.002]
[1760829122590,5.57989314,3893.3,3893.2,0.002]
[1760829122907,5.17693615,3893.3,3893.2,0.002]
[1760829123912,5.13215228,3893.3,3893.2,0.002]
[1760829124681,5.03315228,3893.3,3893.2,0.002]
[1760829125697,5.0779358,3893.3,3893.2,0.002]
[1760829134393,4.97489866,3893.3,3893.2,0.4754]
[1760829135185,4.93011514,3893.3,3893.2,0.4754]
[1760829137283,4.93011514,3893.3,3893.2,0.002]
[1760829137485,4.97489702,3893.3,3893.2,0.002]
[1760829140017,0.67838188,3893.3,3893.2,0.7122]
[1760829140218,2.40638188,3893.3,3893.2,0.7122]
[1760829140883,3.24689702,3893.3,3893.2,0.7122]
[1760829141423,0.67838188,3893.3,3893.2,0.7122]
[1760829141641,0.04478188,3893.3,3893.2,0.7122]
[1760829141982,0.04478188,3893.3,3893.2,1.04089737]
[1760829142184,0.04478188,3893.3,3893.2,0.7122]
[1760829142992,0.04478188,3893.3,3893.2,3.28078111]
[1760829143721,0.04478188,3893.3,3893.2,0.7122]
[1760829144828,0.04478188,3893.3,3893.2,0.8412]
[1760829147723,0.04478188,3893.3,3893.2,3.40978111]
[1760829148210,0.04478188,3893.3,3893.2,4.00823576]
[1760829149412,0.001,3893.4,3893.3,2.56851514]
[1760829149654,0.001,3893.4,3893.3,0.4734]
[1760829149813,0.001,3893.4,3893.3,3.04191514]
[1760829151841,0.001,3893.4,3893.3,3.17091514]
[1760829152453,0.001,3893.4,3893.3,3.78195061]
[1760829155439,0.001,3893.4,3893.3,0.74003547]
[1760829155662,0.001,3893.4,3893.2,0.002]
[1760829156241,0.001,3893.4,3893.2,0.4691]
[1760829158266,0.001,3893.4,3893.2,0.002]
[1760829160572,0.1,3893.4,3893.2,0.002]
[1760829161075,0.001,3893.4,3893.2,0.002]
[1760829162447,0.099,3893.3,3893.2,0.002]
[1760829163144,0.14377574,3893.3,3893.2,0.002]
[1760829163869,0.04477574,3893.3,3893.2,0.002]
[1760829164166,0.001,3893.4,3893.2,0.002]
[1760829166264,0.6336,3893.3,3893.2,0.002]
[1760829170348,0.7326,3893.3,3893.2,0.002]
[1760829173378,0.6336,3893.3,3893.2,0.002]
[1760829184475,0.04577583,3893.4,3893.2,0.2394]
[1760829184676,0.04577583,3893.4,3893.3,3.31651855]
[1760829185280,0.001,3893.4,3893.3,3.31651855]
[1760829186115,0.001,3893.4,3893.3,3.41952385]
[1760829187497,0.129,3893.4,3893.3,3.41952385]
[1760829187679,0.17377076,3893.4,3893.3,3.41952385]
[1760829188304,0.17377076,3893.4,3893.3,0.85100871]
[1760829188472,0.17377076,3893.4,3893.3,0.5698053]
[1760829188671,0.129,3893.4,3893.3,3.13832044]
[1760829189214,0.17377128,3893.4,3893.3,3.13832044]
[1760829189418,0.129,3893.4,3893.3,3.13832044]
[1760829191813,0.17377128,3893.4,3893.3,3.13832044]
[1760829192016,0.17377128,3893.4,3893.3,1.16484825]
[1760829193118,0.17377128,3893.4,3893.3,0.1030053]
[1760829193584,0.17377128,3893.4,3893.2,0.002]
[1760829200090,0.17377128,3893.4,3893.3,0.47]
[1760829203499,0.17377128,3893.4,3893.3,3.03851514]
[1760829205131,0.17377128,3893.4,3893.3,3.06420029]
[1760829205333,0.17377128,3893.4,3893.3,3.69881493]
[1760829205630,0.04577128,3893.4,3893.3,3.69881493]
[1760829205832,0.04577128,3893.4,3893.3,4.33241493]
[1760829206409,0.001,3893.4,3893.3,4.33241493]
[1760829207636,0.001,3893.4,3893.3,4.30672978]
[1760829208132,0.001,3893.4,3893.3,3.83672978]
[1760829208303,0.001,3893.4,3893.3,4.30672978]
[1760829218030,0.001,3893.4,3893.3,4.30872978]
[1760829219452,0.001,3893.4,3893.3,4.33441493]
[1760829219656,0.001,3893.4,3893.3,4.30872978]
[1760829223064,0.001,3893.4,3893.3,4.33441493]